Cogmind - Beta 16 @@@ ROGUE MODE // 2025.10.27 @ 05:02:10 Player: Naughtyusername Result: Self-destructed Performance ------------- Evolutions (3) 1500 Regions Visited (14) 2800 Robots Destroyed (360) 1800 Value Destroyed (14334) 14334 Prototype IDs (47) 940 Alien Tech Used (0) 0 Bonus (5167) 5167 TOTAL SCORE: 26541 Bonus ------- High Alert Combat Kills 3922 Follower Combat Kills 245 Entered Garrisons 400 Aligned with FarCom 300 Acquired ECA 300 Cogmind --------- Core Integrity 257/700 Matter 199/300 Energy 290/290 System Corruption 13% Temperature Cool (30) Movement Rolling (160) Ox4 Location -7/Lower Caves Parts ------- > --- POWER (1) -------- Reinforced Deuterium Engine > --- PROPULSION (3) --- Advanced Treads Armored Huge Wheel > --- UTILITY (5) ------ Improved Cooling System Huge Storage Unit Improved Signal Interpreter Advanced Targeting Computer Powered Armor > --- WEAPON (4) ------- Improved Spread Laser Precision Assault Rifle Precision Assault Rifle Assault Cannon > --- INVENTORY (25) --- Light Nuclear Core Improved Treads Advanced Myomer Leg Armored Huge Wheel Improved Cooling System High-capacity Matter Pod (120) Encrypted Comm Array Advanced Weapon Cycler Powered Armor Powered Armor Improved Hardlight Generator High-powered Tractor Beam Precision Assault Rifle Magnetic Acceleration Cannon Magnetic Acceleration Cannon Proton Missile Launcher Heavy Rocket Launcher Heavy Missile Launcher Rocket Array Remote Datajack Plasma Cutter Peak State ------------ > --- POWER ------------ Reinforced Deuterium Engine > --- PROPULSION ------- Advanced Treads Armored Huge Wheel > --- UTILITY ---------- Improved Cooling System Huge Storage Unit Experimental Sensor Array Improved Signal Interpreter Advanced Targeting Computer > --- WEAPON ----------- Improved Spread Laser Precision Assault Rifle Precision Assault Rifle Precision Assault Rifle > --- INVENTORY -------- Light Nuclear Core Improved Treads Advanced Myomer Leg Armored Huge Wheel Improved Cooling System High-capacity Matter Pod Encrypted Comm Array Advanced Launcher Guidance Computer Advanced Weapon Cycler Powered Armor Powered Armor Powered Armor Improved Hardlight Generator High-powered Tractor Beam Precision Assault Rifle Assault Cannon Magnetic Acceleration Cannon Magnetic Acceleration Cannon Proton Missile Launcher Heavy Rocket Launcher Heavy Missile Launcher Rocket Array Remote Datajack Plasma Cutter [Rating: 65] Favorites ----------- Power Nuclear Core Engine Heavy Ion Engine Power Core Nuclear Core Reactor Cold Fusion Reactor Propulsion Light Treads Treads Light Treads Leg Carbon-fiber Leg Wheel Armored Wheel Hover Unit Cooled Airjet Utility Huge Storage Unit Device Shield Generator Storage Huge Storage Unit Processor Advanced Targeting Computer Hackware System Shield Protection Hardened Light Armor Plating Weapon Heavy Assault Rifle Energy Gun Improved Spread Laser Energy Cannon YOLO Cannon Ballistic Gun Heavy Assault Rifle Ballistic Cannon Heavy Assault Cannon Launcher Rocket Launcher Impact Weapon Impact Mace Slashing Weapon Segregator Special Melee Weapon Datajack Build | -11 -10 -10 -9 -9 -9 -8 -8 -8 -8 -7 -7 -7 -7 -7 ------- Run | Yrd Mat Min Mat Min Exi Min Mat Gar Mat Fac Gar Fac Low Low Slots Evolved 6 | . . . 2 . . . 2 . . 2 . . . . Power . | . . . . . . . . . . . . . . . Propulsion 1 | . . . . . . . 1 . . . . . . . Utility 3 | . . . 1 . . . . . . 2 . . . . Weapon 2 | . . . 1 . . . 1 . . . . . . . Parts Attached 149 | 8 9 2 21 1 17 1 24 3 9 11 11 29 2 1 Power 12 | 1 1 . 3 . 2 . 1 1 . . 2 1 . . Engine 6 | 1 1 . 2 . . . 1 . . . . 1 . . Core 5 | . . . 1 . 2 . . . . . 2 . . . Reactor 1 | . . . . . . . . 1 . . . . . . Propulsion 40 | 2 2 . 7 . 3 . 8 1 2 3 1 10 1 . Treads 29 | 2 2 . 7 . 3 . 6 . 2 . 1 6 . . Leg 3 | . . . . . . . 1 . . . . 2 . . Wheel 7 | . . . . . . . 1 1 . 3 . 1 1 . Hover 1 | . . . . . . . . . . . . 1 . . Flight . | . . . . . . . . . . . . . . . Utility 37 | 2 2 1 4 . 6 1 5 1 4 5 1 4 1 . Device 14 | 1 . 1 2 . 2 1 1 1 2 1 . 2 . . Storage 5 | 1 1 . 1 . . . 1 . 1 . . . . . Processor 5 | . . . . . . . 1 . . 3 . . 1 . Hackware 1 | . . . . . . . . . 1 . . . . . Protection 12 | . 1 . 1 . 4 . 2 . . 1 1 2 . . Artifact . | . . . . . . . . . . . . . . . Weapon 60 | 3 4 1 7 1 6 . 10 . 3 3 7 14 . 1 Energy Gun 9 | 2 . . 1 . . . . . . . 3 3 . . Energy Cannon 1 | . . . . . 1 . . . . . . . . . Ballistic Gun 35 | 1 3 . 5 . 5 . 8 . 2 2 2 7 . . Ballistic Cannon 3 | . . . . . . . . . 1 1 . . . 1 Launcher 9 | . 1 1 1 1 . . 1 . . . 1 3 . . Special Weapon . | . . . . . . . . . . . . . . . Impact Weapon 1 | . . . . . . . . . . . . 1 . . Slashing Weapon 1 | . . . . . . . . . . . 1 . . . Piercing Weapon . | . . . . . . . . . . . . . . . Special Melee Weapon 1 | . . . . . . . 1 . . . . . . . Unidentified Prototypes 13 | . . 1 2 . . 1 2 . . 1 . 6 . . Parts Lost 53 | . . . 3 . 17 . 6 1 5 2 9 8 1 1 Power 4 | . . . . . 2 . . 1 . . 1 . . . Propulsion 17 | . . . 1 . 5 . 1 . 2 . 1 6 1 . Utility 15 | . . . 1 . 5 . 3 . 2 1 1 2 . . Weapon 17 | . . . 1 . 5 . 2 . 1 1 6 . . 1 Highest Loss Streak 7 | . . . 3 . 7 . 3 1 2 2 3 2 1 1 To Critical Strikes 6 | . . . . . 6 . . . . . . . . . Average Backups 22 | 1 10 17 24 25 21 22 23 22 22 22 21 22 22 23 Power 1 | . 1 1 2 3 2 4 2 1 1 1 . . 1 1 Propulsion 2 | . . . 3 5 3 3 2 2 2 1 2 3 2 3 Utility 9 | . 4 8 9 9 9 10 10 10 11 12 12 10 8 8 Weapon 6 | . 4 8 7 7 4 4 6 7 5 5 4 6 6 8 Tool/Special . | . . . . . . . . . . . . . . . Unused Backups 51 | . . . 11 . 7 . 6 . 1 7 . 4 2 13 Power 6 | . . . 1 . 3 . 2 . . . . . . . Propulsion 8 | . . . 3 . 1 . . . . . . 3 . 1 Utility 22 | . . . 2 . 3 . 4 . . 6 . 1 . 6 Weapon 12 | . . . 5 . . . . . 1 1 . . 2 3 Tool/Special 3 | . . . . . . . . . . . . . . 3 Average Slot Usage (%) 96 | . 91 100 99 100 93 100 95 90 89 98 95 99 98 92 Engine 4 | . 14 14 5 11 4 . 5 5 . . . 3 7 7 Core 3 | . . . 5 . 6 11 3 . . . 3 3 . . Reactor 1 | . . . . . . . . 3 9 7 3 . . . Treads 18 | . 27 28 21 22 22 22 23 9 9 7 10 15 19 7 Wheel 3 | . . . . . . . 1 9 9 14 11 6 1 7 Device 9 | . 1 5 10 11 10 20 9 7 8 7 6 7 13 7 Storage 9 | . 14 14 11 11 11 11 9 9 9 7 7 7 7 7 Processor 5 | . . . . . . . 3 9 9 13 15 15 15 15 Protection 6 | . 4 8 11 11 8 1 5 1 . 6 6 6 1 7 Energy Gun 2 | . 7 . . . . . . . . . 5 7 6 7 Ballistic Gun 28 | . 20 27 32 32 27 33 33 35 35 29 18 21 23 23 Peak Build Rating 65 | 7 12 19 24 24 41 32 57 57 58 62 56 63 65 61 Average Rating 38 | 5 8 15 21 23 26 27 40 56 56 59 51 55 61 58 On Entrance 34 | . 7 12 13 24 24 28 27 57 57 51 55 50 58 61 Avg Prop Armor Cover (%) 7 | . . . . . . . 8 8 8 6 8 6 6 . Naked Turns . | . . . . . . . . . . . . . . . Heaviest Build 125 | 12 56 56 104 104 109 102 109 106 111 117 123 125 123 . Greatest Support 68 | 40 40 40 46 46 46 40 60 28 28 42 43 68 68 . Greatest Overweight (x) 10 | . 1 1 2 2 2 2 3 3 3 10 9 10 5 . Average Overweight (x) 2 | . . 1 1 2 2 2 1 3 3 4 6 3 1 . Largest Inventory Capacity 25 | 8 20 20 25 25 25 25 25 25 25 25 25 25 25 25 Average Capacity 24 | 7 13 20 24 25 25 25 25 25 25 25 25 25 25 25 Most Carried 25 | 3 17 18 25 25 25 23 25 25 25 25 25 25 25 25 Average Carried 22 | 1 10 17 24 25 21 23 24 24 24 24 22 24 24 23 Final Capacity 25 | 8 20 20 25 25 25 25 25 25 25 25 25 25 25 25 Final Carried 25 | 3 17 18 25 25 23 23 25 24 24 25 22 25 25 22 Class Distribution -------------------- 33% | Tank 25% | Scavenger-Gunner 20% | Gunner 7% | Mutant 6% | Skirmisher 3% | Scavenger-Tank Dominant Class ---------------- Mutant | -10/Materials Mutant | -10/Mines Tank | -9/Materials Tank | -9/Mines Tank | -9/Exiles Scavenger-Gunner | -8/Mines Scavenger-Gunner | -8/Materials Gunner | -8/Garrison Scavenger-Gunner | -8/Materials Scavenger-Gunner | -7/Factory Scavenger-Gunner | -7/Garrison Gunner | -7/Factory Skirmisher | -7/Lower Caves Skirmisher | -7/Lower Caves Resources | -11 -10 -10 -9 -9 -9 -8 -8 -8 -8 -7 -7 -7 -7 -7 ----------- Run | Yrd Mat Min Mat Min Exi Min Mat Gar Mat Fac Gar Fac Low Low Matter Collected 12292 | 285 548 3 1123 169 1232 . 1598 1239 1101 1317 1462 1601 614 . Remotely 1192 | . . . 124 . . . 145 102 154 298 239 130 . . Salvage Created 13774 | 170 639 15 1591 315 457 9 1754 1190 1678 1724 1666 2302 264 . Parts 824 | 14 29 4 122 29 57 4 106 54 97 92 102 105 9 . Haulers Intercepted 24 | . 1 . 5 . . . 6 . 6 1 . 5 . . Recyclers Shooed 6 | . 2 . 2 . . 1 . . . . . 1 . . Parts Field Recycled . | . . . . . . . . . . . . . . . Retrieved Matter . | . . . . . . . . . . . . . . . Parts Self-Destructed 6 | . . . . . . . . . . . . . 6 . Prevented . | . . . . . . . . . . . . . . . Parts Restored . | . . . . . . . . . . . . . . . Kills | -11 -10 -10 -9 -9 -9 -8 -8 -8 -8 -7 -7 -7 -7 -7 ------- Run | Yrd Mat Min Mat Min Exi Min Mat Gar Mat Fac Gar Fac Low Low Combat Hostiles Destroyed 279 | . 11 4 32 12 7 3 34 24 32 29 44 43 4 . Guns 202 | . 11 1 22 5 3 . 27 19 32 29 19 30 4 . Cannons 17 | . . . . . . . . . . . 17 . . . AOE 60 | . . 3 10 7 4 3 7 5 . . 8 13 . . Classes Destroyed 22 | 2 2 2 5 1 3 . 3 1 1 1 1 . . . Worker 16 | . . . 4 1 . . 1 . 2 3 . 5 . . Builder 7 | . . . 1 1 . . 3 . 1 1 . . . . Tunneler 5 | 3 . . 1 . . . . . . . . 1 . . Hauler 24 | . 1 . 5 . . . 6 . 6 1 . 5 . . Recycler 12 | 1 2 . 3 . . . 3 . 1 1 . 1 . . Mechanic 2 | . . . . . . . . . . 1 . 1 . . Operator 4 | . . . 3 . . . . . . . . 1 . . Turret 1 | . . . . . 1 . . . . . . . . . Watcher 7 | . . . 3 . . . 1 . 2 . . 1 . . Swarmer 66 | . . 3 13 4 . 3 10 4 10 . 15 3 1 . Saboteur 1 | . . . . . . . . . . . 1 . . . Grunt 132 | . 11 . 10 7 . . 16 16 15 22 12 22 1 . Brawler 7 | . . . . . . . 1 1 . 1 . 4 . . Duelist 9 | . . . . 1 . . 1 . . 1 3 3 . . Protector 4 | . . . . . . . . . 1 1 . 2 . . Sentry 30 | . . . 9 . . . 4 . 5 . 6 5 1 . Demolisher 1 | . . 1 . . . . . . . . . . . . Hunter 6 | . . . . . . . 1 2 1 . 1 1 . . Programmer 14 | . . . . . . . . 1 . 4 6 3 . . Heavy 1 | . . . . . . . 1 . . . . . . . Zionite 7 | . . . . . 7 . . . . . . . . . Packrat 1 | . . . . . . . . . . . . . 1 . Assembled 6 | . . . . . 6 . . . . . . . . . Thug 1 | . . . . . . . . . . . . . 1 . Best Kill Streak 10 | 3 3 3 6 5 4 3 10 5 7 7 7 7 2 . Combat Bots Only 7 | . 2 3 4 4 4 3 6 5 6 6 7 5 2 . Max Kills in Single Turn 4 | 1 1 2 4 4 2 2 3 4 2 2 4 4 1 . Gunslinging 1 | . . . 1 . . . 1 . 1 1 . 1 . . Exploded 4 | . . 2 3 4 2 2 2 4 . . 4 3 . . Melee . | . . . . . . . . . . . . . . . Uniques/NPCs Destroyed 4 | . . . . . 4 . . . . . . . . . 8R-AWN (-9/Exiles) EX-BIN (-9/Exiles) EX-HEX (-9/Exiles) EX-DEC (-9/Exiles) Combat | -11 -10 -10 -9 -9 -9 -8 -8 -8 -8 -7 -7 -7 -7 -7 -------- Run | Yrd Mat Min Mat Min Exi Min Mat Gar Mat Fac Gar Fac Low Low Hostile Shots Fired 1158 | . 78 18 118 23 149 9 132 56 82 70 138 260 21 4 Missed 320 | . 19 2 42 6 26 1 39 19 16 19 39 85 7 . Hits 838 | . 59 16 76 17 123 8 93 37 66 51 99 175 14 4 Melee 33 | . . . . . 3 . . . . 7 11 6 2 4 Projectile 805 | . 59 16 76 17 120 8 93 37 66 44 88 169 12 . AOE 9 | . . 9 . . . . . . . . . . . . Critical Strikes 67 | . 4 . . 1 32 1 8 2 3 3 4 8 1 . Damage Taken 12539 | . 746 428 630 157 1935 65 1495 555 1283 1174 1495 2429 139 8 Core 1402 | . 71 115 86 11 210 . 223 59 184 150 194 99 . . Absorbed by Shields 555 | . . . 249 62 179 . . 52 . . 13 . . . Regen/Repaired (Parts) 530 | . 182 . 20 . . . 58 . 118 152 . . . . Core Remaining (%) 36 | 100 . 25 . . . 5 . . 15 . . . . . Volleys Fired 765 | 5 65 7 75 12 114 4 83 82 67 66 91 78 12 4 Largest 4 | 2 2 2 3 3 3 3 4 4 4 4 4 4 4 4 Hottest 299 | 70 70 46 69 69 100 69 100 105 100 100 222 299 159 168 Shots Fired 2342 | 10 126 11 204 30 242 8 294 278 265 263 274 279 43 15 Gun 2192 | 10 126 8 194 24 195 6 286 271 264 263 229 259 43 14 Cannon 71 | . . . . . 26 . . . 1 . 43 . . 1 Launcher 79 | . . 3 10 6 21 2 8 7 . . 2 20 . . Special . | . . . . . . . . . . . . . . . Kinetic 2088 | 5 94 8 194 24 195 6 286 271 265 263 234 200 32 11 Thermal 175 | 5 32 . . . 26 . . . . . 38 59 11 4 Explosive 72 | . . 3 10 6 21 2 8 7 . . 2 13 . . Electromagnetic 7 | . . . . . . . . . . . . 7 . . Robot Hit Streak 84 | 7 9 3 13 6 36 5 15 47 9 22 16 84 7 3 Robot Miss Streak 6 | 1 4 1 4 2 4 2 4 6 6 3 6 3 3 4 Penetration Max 1 | . . . . . . . . . . . 1 . . . Secondary Targets 42 | . 1 . 3 . . . 6 7 6 10 1 8 . . Max Gunslinging Chain 1 | . 1 . 1 . . . 1 1 1 1 1 1 . . Shots Hit Robots 1408 | 7 78 6 118 17 137 5 194 141 135 172 139 221 28 10 Core Hits 746 | 5 33 5 67 21 48 4 84 71 66 82 77 162 19 2 Critical Kills 8 | . . . 3 . . . 1 2 1 . . . 1 . Critical Parts Destroyed 8 | . . . . . 1 . 2 . 1 . 1 3 . . Critical Strikes 22 | . 1 . 3 . 1 . 3 2 2 . 6 3 1 . Burn 1 | . 1 . . . . . . . . . . . . . Destroy 16 | . . . 3 . 1 . 3 2 2 . 1 3 1 . Blast 5 | . . . . . . . . . . . 5 . . . Melee Attacks 2 | . . . . . . . . . . . 2 . . . Thermal 2 | . . . . . . . . . . . 2 . . . Impact . | . . . . . . . . . . . . . . . Slashing . | . . . . . . . . . . . . . . . Piercing . | . . . . . . . . . . . . . . . Sneak Attacks . | . . . . . . . . . . . . . . . Combat Hostiles . | . . . . . . . . . . . . . . . Follow-up Attacks . | . . . . . . . . . . . . . . . Damage Inflicted 31586 | 72 1028 281 2632 834 2916 245 4084 2295 2519 3140 3858 6926 570 186 Guns 23035 | 72 1011 88 1789 207 2041 86 3167 1797 2409 3140 2093 4400 570 165 Cannons 1268 | . . . . . . . . . . . 1247 . . 21 Explosions 7057 | . . 193 784 600 875 159 904 498 . . 518 2526 . . Melee . | . . . . . . . . . . . . . . . Ramming 226 | . 17 . 59 27 . . 13 . 110 . . . . . Kinetic 22126 | 35 736 88 1789 207 2041 86 3167 1797 2409 3140 2817 3297 393 124 Thermal 2294 | 37 275 . . . 117 . . . . . 523 1103 177 62 Explosive 6352 | . . 193 784 600 758 159 904 498 . . 518 1938 . . Electromagnetic 588 | . . . . . . . . . . . . 588 . . Impact . | . . . . . . . . . . . . . . . Slashing . | . . . . . . . . . . . . . . . Piercing . | . . . . . . . . . . . . . . . Highest Corruption 13 | . 1 1 . . 2 2 . . . 9 11 13 13 13 Average Corruption 7 | . 1 1 . . 1 2 . . . 4 10 11 13 13 Corruption Purged . | . . . . . . . . . . . . . . . Corruption Blocked . | . . . . . . . . . . . . . . . Effects 329 | . 12 2 . . 27 . . . . 17 81 114 75 1 Message Errors 70 | . 2 . . . 9 . . . . 5 22 18 14 . Matter Fused 69 | . 2 . . . 4 . . . . 5 13 25 20 . Heat Flow Errors 38 | . 2 . . . 5 . . . . 2 11 11 7 . Energy Discharges 32 | . 2 1 . . 1 . . . . 1 9 12 6 . Parts Rejected 4 | . 2 . . . . . . . . 1 1 . . . Parts Fused 2 | . . . . . . . . . . . 1 . 1 . Data Loss (minor) 47 | . . . . . 4 . . . . 1 11 18 13 . Data Loss (major) 23 | . 1 1 . . . . . . . 1 4 12 4 . Misfires 13 | . . . . . 2 . . . . . 3 3 5 . Alerts 11 | . 1 . . . 2 . . . . . 2 2 4 . Misdirections 2 | . . . . . . . . . . . . 2 . . Weapon Failures 18 | . . . . . . . . . . 1 4 11 1 1 Overload Shots . | . . . . . . . . . . . . . . . Overflow Damage 201 | . . 17 5 6 17 9 70 6 . . 61 10 . . Projectiles 40 | . . . . . . . . . . . 40 . . . Explosions 161 | . . 17 5 6 17 9 70 6 . . 21 10 . . Melee . | . . . . . . . . . . . . . . . Knockbacks 8 | . . . 2 1 . . . . . . 4 . . 1 Impact 2 | . . . 1 1 . . . . . . . . . . Kinetic 4 | . . . . . . . . . . . 3 . . 1 Secondary 2 | . . . 1 . . . . . . . 1 . . . Self-Inflicted Damage 697 | . . . 35 . 144 . . 79 89 213 . 137 . . Shots 14 | . . . 2 . 2 . . 2 1 2 . 5 . . Rammed 26 | . 4 . 10 4 . . . . 8 . . . . . Targets Rammed 28 | . 4 . 11 4 . . 1 . 8 . . . . . Kicked . | . . . . . . . . . . . . . . . Crushed 2 | . . . 1 . . . 1 . . . . . . . Highest Temperature 416 | 40 348 6 154 94 301 . 400 416 265 226 333 245 150 30 Average Temperature 82 | 19 111 3 37 40 105 . 94 122 50 60 99 92 40 15 Received Heat Transfer 3683 | . 489 . 134 83 . . 738 243 540 315 229 837 75 . Effects 15 | . 7 . . . 3 . 1 4 . . . . . . Shutdowns 5 | . 2 . . . . . 1 2 . . . . . . Energy Bleed 4 | . 1 . . . 1 . . 2 . . . . . . Interference 3 | . 2 . . . 1 . . . . . . . . . Short Circuit 1 | . . . . . 1 . . . . . . . . . Damage (minor) 2 | . 2 . . . . . . . . . . . . . Siege Activations . | . . . . . . . . . . . . . . . Martial Activations . | . . . . . . . . . . . . . . . Shielding Activations . | . . . . . . . . . . . . . . . Robots Disrupted . | . . . . . . . . . . . . . . . Combat Hostiles . | . . . . . . . . . . . . . . . Robots Corrupted . | . . . . . . . . . . . . . . . Combat Hostiles . | . . . . . . . . . . . . . . . Parts Fried . | . . . . . . . . . . . . . . . Impact Corruptions . | . . . . . . . . . . . . . . . Robots Melted . | . . . . . . . . . . . . . . . Combat Hostiles . | . . . . . . . . . . . . . . . Parts Melted 2 | . 1 . . . 1 . . . . . . . . . Heat Transferred 3364 | 111 888 . . . 160 . . . . . 844 1161 150 50 Parts Sabotaged 10 | . . . . . . . . . . . 10 . . . Parts Stolen 5 | . . . . . . . . . . . . . 2 3 Parts Stripped . | . . . . . . . . . . . . . . . Power Chain Reactions . | . . . . . . . . . . . . . . . Alert | -11 -10 -10 -9 -9 -9 -8 -8 -8 -8 -7 -7 -7 -7 -7 ------- Run | Yrd Mat Min Mat Min Exi Min Mat Gar Mat Fac Gar Fac Low Low Maximum Alert Level 5 | . . . 2 . . . 2 4 4 3 5 5 . . Low Security (%) 29 | 100 100 100 26 100 . 100 29 . . . . . . . Level 1 19 | . . . 67 . . . 20 4 . 13 9 . . . Level 2 17 | . . . 6 . . . 49 26 1 78 12 . . . Level 3 15 | . . . . . . . . 42 53 8 25 37 . . Level 4 13 | . . . . . . . . 26 44 . 16 51 . . Level 5 5 | . . . . . . . . . . . 36 11 . . High Security . | . . . . . . . . . . . . . . . Max Security . | . . . . . . . . . . . . . . . Peak Influence 2029 | 15 96 104 439 110 . 74 539 1455 1267 725 2029 1724 . . Initial 1064 | . . 3 . 95 . . 20 302 709 530 244 1064 . . Average 570 | 2 35 33 251 36 . 26 319 881 1012 518 1228 1229 . . Influence Increases 9673 | 20 401 127 1112 331 . 84 1028 1163 1232 842 1875 1398 60 . Destroy 0b10 Robot/C 5480 | . 220 80 640 240 . 60 680 600 640 560 880 820 60 . Destroy 0b10 Robot/NC 425 | 20 15 . 100 10 . . 70 10 70 40 5 85 . . Destroy Leader 992 | . 62 10 176 40 . 10 164 20 168 122 30 190 . . Allied During Kill 102 | . . . . . . . . 35 67 . . . . . Successful Hack 360 | . 73 6 33 . . . 36 30 41 73 14 54 . . Disable Machine 495 | . . 15 60 . . . 45 45 165 30 45 90 . . Anti-Garrison Action 1050 | . . . . . . . . 400 . . 650 . . . Destroy Structure 589 | . 1 16 58 41 . 14 33 23 66 17 176 144 . . Lose Combat Pursuer 180 | . 30 . 45 . . . . . 15 . 75 15 . . Influence Decreases 9258 | 20 392 136 867 576 . 30 616 174 1520 1660 195 1707 1254 111 Entered New Map 3545 | . . 6 . 150 . . 34 164 746 637 105 965 637 101 Time Decay 4563 | 20 392 130 687 426 . 30 522 . 534 553 . 662 607 . Lost Part 360 | . . . 30 . . . 60 10 50 20 90 80 10 10 Lost Ally 40 | . . . . . . . . . 40 . . . . . Purge Threat 750 | . . . 150 . . . . . 150 450 . . . . Squads Dispatched 46 | . 3 . 2 . . . 9 . 7 11 . 14 . . Investigation 12 | . 2 . 2 . . . 2 . 4 1 . 1 . . Extermination 6 | . . . . . . . . . . 3 . 3 . . Reinforcement 13 | . 1 . . . . . 3 . 2 3 . 4 . . Assault 10 | . . . . . . . . . 1 3 . 6 . . Garrison 5 | . . . . . . . 4 . . 1 . . . . Intercept . | . . . . . . . . . . . . . . . Searches Triggered . | . . . . . . . . . . . . . . . Construction Impeded 4 | . . . . . . . 1 . 1 . . 2 . . Haulers Reinforced 1 | . . . . . . . . . . 1 . . . . Active Scanning Responses . | . . . . . . . . . . . . . . . Cargo Convoy Interrupts . | . . . . . . . . . . . . . . . Stealth | -11 -10 -10 -9 -9 -9 -8 -8 -8 -8 -7 -7 -7 -7 -7 --------- Run | Yrd Mat Min Mat Min Exi Min Mat Gar Mat Fac Gar Fac Low Low Distress Signals 12 | . 4 . 4 . . . 1 . 2 . . 1 . . Communications Jammed . | . . . . . . . . . . . . . . . Distress Signals . | . . . . . . . . . . . . . . . Times Spotted 402 | . 21 4 51 12 23 2 56 29 48 37 49 60 7 3 Peak Tracking Total 9 | . 4 3 4 4 9 3 6 5 5 6 7 6 2 2 Tactical Retreats 18 | . 2 . 2 . 10 . . . 1 . 2 1 . . Traps | -11 -10 -10 -9 -9 -9 -8 -8 -8 -8 -7 -7 -7 -7 -7 ------- Run | Yrd Mat Min Mat Min Exi Min Mat Gar Mat Fac Gar Fac Low Low Traps Triggered 27 | . 2 . . . . . . 13 1 . 8 3 . . Indirectly . | . . . . . . . . . . . . . . . Trap Hack Attempts . | . . . . . . . . . . . . . . . Triggered . | . . . . . . . . . . . . . . . Disarmed . | . . . . . . . . . . . . . . . Reprogrammed . | . . . . . . . . . . . . . . . Reused . | . . . . . . . . . . . . . . . Traps Extracted . | . . . . . . . . . . . . . . . Installed . | . . . . . . . . . . . . . . . Triggered . | . . . . . . . . . . . . . . . Machines | -11 -10 -10 -9 -9 -9 -8 -8 -8 -8 -7 -7 -7 -7 -7 ---------- Run | Yrd Mat Min Mat Min Exi Min Mat Gar Mat Fac Gar Fac Low Low Machines Disabled 80 | . . 1 4 . 30 . 3 9 11 2 14 6 . . Max in Single Turn 6 | . . 1 2 . 3 . 1 1 3 2 2 6 . . Garrison Relay 11 | . . . . . . . . 6 . . 5 . . . Phase Generator 1 | . . . . . . . . . . . 1 . . . Machines Repaired . | . . . . . . . . . . . . . . . Machines Dismantled . | . . . . . . . . . . . . . . . Machines Sabotaged . | . . . . . . . . . . . . . . . Overloaded Fab Kills . | . . . . . . . . . . . . . . . Hacking | -11 -10 -10 -9 -9 -9 -8 -8 -8 -8 -7 -7 -7 -7 -7 --------- Run | Yrd Mat Min Mat Min Exi Min Mat Gar Mat Fac Gar Fac Low Low Machines Accessed 89 | . 10 1 17 . 2 . 12 3 16 14 2 11 1 . Terminals 57 | . 7 1 12 . . . 8 3 10 7 2 7 . . Fabricators 3 | . . . . . . . . . . 1 . 2 . . Repair Stations 9 | . 1 . 2 . . . 1 . 2 3 . . . . Recycling Units 7 | . 2 . 2 . . . . . 1 1 . 1 . . Scanalyzers 6 | . . . 1 . . . 2 . 2 1 . . . . Garrison Access 4 | . . . . . . . 1 . 1 1 . 1 . . Total Hacks 294 | . 38 2 62 . 2 . 55 7 60 37 5 25 1 . Successful 134 | . 23 1 28 . 2 . 29 2 25 13 1 9 1 . Failed 157 | . 14 1 33 . . . 26 5 34 24 4 16 . . Catastrophic 22 | . 2 . 4 . . . 2 . 6 1 1 6 . . Database Lockouts 3 | . 1 . 1 . . . . . 1 . . . . . Manual 139 | . 23 2 31 . 1 . 28 . 32 8 . 14 . . Terminals 202 | . 27 2 51 . . . 27 7 42 23 5 18 . . Fabricators 5 | . . . . . . . . . . 2 . 3 . . Repair Stations 29 | . 5 . 5 . . . 8 . 6 5 . . . . Recycling Units 18 | . 6 . 4 . . . . . 2 3 . 3 . . Scanalyzers 27 | . . . 2 . . . 15 . 8 2 . . . . Garrison Access 10 | . . . . . . . 5 . 2 2 . 1 . . Terminal Hacks 42 | . 6 1 11 . 2 . 3 2 5 6 1 4 1 . Record 1 | . . . . . 1 . . . . . . . . . Robot Analysis 4 | . 1 1 1 . . . . . 1 . . . . . Prototype ID Bank 6 | . 1 . 2 . . . 1 . 1 . . 1 . . Open Door 1 | . . . . . . . . . . . . . 1 . Branch Access Points 1 | . . . . . . . . . . 1 . . . . Emergency Access Points 1 | . . . . . . . . . . . 1 . . . Terminal Index 5 | . 1 . 1 . . . 1 . 1 . . 1 . . Alert Level 3 | . 1 . . . . . 1 . . . . 1 . . Unreport Threat 5 | . . . 1 . . . . . 1 3 . . . . Locate Traps 2 | . . . 2 . . . . . . . . . . . Maintenance Status 1 | . . . . . . . . . . 1 . . . . Transport Status 1 | . . . . . . . . . . 1 . . . . Hauler Manifests 3 | . . . 2 . . . . . 1 . . . . . Registered Components 3 | . 1 . 1 . . . . . . . . 1 . . Registered Prototypes 1 | . 1 . . . . . . . . . . . . . Zone Layout 1 | . . . 1 . . . . . . . . . . . Patrol Navigation 1 | . . . . . . . . 1 . . . . . . Security Stations 1 | . . . . . . . . 1 . . . . . . Proto ID Catalog 1 | . . . . . 1 . . . . . . . . . Fabricator Hacks 2 | . . . . . . . . . . 1 . 1 . . Network Status 1 | . . . . . . . . . . . . 1 . . Build 1 | . . . . . . . . . . 1 . . . . Repair Station Hacks 15 | . 4 . 3 . . . 3 . 3 2 . . . . Scan Component 9 | . 2 . 2 . . . 2 . 2 1 . . . . Repair 6 | . 2 . 1 . . . 1 . 1 1 . . . . Recycling Unit Hacks 4 | . 1 . 1 . . . . . 1 . . 1 . . Retrieve Components 4 | . 1 . 1 . . . . . 1 . . 1 . . Scanalyzer 20 | . . . . . . . 13 . 6 1 . . . . Insert Component 7 | . . . . . . . 5 . 2 . . . . . Analyze 6 | . . . . . . . 2 . 4 . . . . . Retrieve Study 7 | . . . . . . . 6 . . 1 . . . . Garrison Access Hacks 2 | . . . . . . . 1 . . 1 . . . . Unlock Access 2 | . . . . . . . 1 . . 1 . . . . Unauthorized Hacks 49 | . 12 . 13 . . . 9 . 10 2 . 3 . . Terminals 43 | . 11 . 12 . . . 8 . 10 1 . 1 . . Track 1 | . . . 1 . . . . . . . . . . . Botnet 16 | . 4 . 4 . . . 3 . 4 . . 1 . . Disrupt 1 | . 1 . . . . . . . . . . . . . Operators 2 | . 1 . 1 . . . . . . . . . . . Skim 23 | . 5 . 6 . . . 5 . 6 1 . . . . Fabricators 1 | . . . . . . . . . . . . 1 . . Haulers 1 | . . . . . . . . . . . . 1 . . Repair Stations 3 | . 1 . . . . . 1 . . 1 . . . . Patch 3 | . 1 . . . . . 1 . . 1 . . . . Recycling Units 2 | . . . 1 . . . . . . . . 1 . . Recyclers 2 | . . . 1 . . . . . . . . 1 . . Scanalyzers . | . . . . . . . . . . . . . . . Garrison Access . | . . . . . . . . . . . . . . . Data Cores Recovered 3 | . . . 2 . . . . . . . . 1 . . Used . | . . . . . . . . . . . . . . . Hacking Detections 80 | . 10 1 15 . . . 12 2 15 12 2 11 . . Full Trace Events 11 | . 2 . 2 . . . 2 . 3 . 1 1 . . Feedback Events . | . . . . . . . . . . . . . . . Feedback Blocked . | . . . . . . . . . . . . . . . Robot Schematics Acquired . | . . . . . . . . . . . . . . . Robots Built . | . . . . . . . . . . . . . . . Authchips . | . . . . . . . . . . . . . . . Time . | . . . . . . . . . . . . . . . Total Robot Build Rating . | . . . . . . . . . . . . . . . Part Schematics Acquired 1 | . . . . . . . 1 . . . . . . . Parts Built 2 | . . . . . . . . . . 2 . . . . Authchips . | . . . . . . . . . . . . . . . Time 58 | . . . . . . . . . . 58 . . . . Total Part Build Rating 14 | . . . . . . . . . . 14 . . . . Part Studies Acquired 7 | . . . . . . . 6 . . 1 . . . . Parts Repaired 6 | . 2 . 1 . . . 1 . 1 1 . . . . Time 375 | . 52 . 32 . . . 95 . 60 136 . . . . Parts Recycled . | . . . . . . . . . . . . . . . Recycled Matter . | . . . . . . . . . . . . . . . Retrieved Matter . | . . . . . . . . . . . . . . . Retrieved Components 20 | . 9 . 9 . . . . . 2 . . . . . Parts Scanalyzed 3 | . . . . . . . 1 . 2 . . . . . Part Schematics Acquired 1 | . . . . . . . 1 . . . . . . . Parts Damaged 2 | . . . . . . . 1 . 1 . . . . . Bothacking | -11 -10 -10 -9 -9 -9 -8 -8 -8 -8 -7 -7 -7 -7 -7 ------------ Run | Yrd Mat Min Mat Min Exi Min Mat Gar Mat Fac Gar Fac Low Low Used RIF Installer . | . . . . . . . . . . . . . . . Robots Hacked . | . . . . . . . . . . . . . . . Non-combat . | . . . . . . . . . . . . . . . Combat . | . . . . . . . . . . . . . . . Robot Hacks Applied . | . . . . . . . . . . . . . . . Relay Couplers Released 47 | . . . . . . . . 28 . . 19 . . . Machine Destruction 44 | . . . . . . . . 25 . . 19 . . . Programmers 3 | . . . . . . . . 3 . . . . . . Fabnet Peak Effective % . | . . . . . . . . . . . . . . . Robots Rewired 4 | . . . . . . . . 4 . . . . . . Allies Hacked . | . . . . . . . . . . . . . . . Hacks Repelled . | . . . . . . . . . . . . . . . Allies | -11 -10 -10 -9 -9 -9 -8 -8 -8 -8 -7 -7 -7 -7 -7 -------- Run | Yrd Mat Min Mat Min Exi Min Mat Gar Mat Fac Gar Fac Low Low Total Allies 4 | . . . . . . . . 4 . . . . . . Largest Group 4 | . . . . . . . . 4 4 . . . . . Highest-Rated Group 96 | . . . . . . . . 96 93 . . . . . Highest-Rated Ally 24 | . . . . . . . . 24 24 . . . . . Initial Warlord ECA Mod 23 | . . . . . . . . . 10 9 9 23 23 23 Total Orders . | . . . . . . . . . . . . . . . Ally Attacks 36 | . . . . . . . . 15 21 . . . . . Total Damage 1139 | . . . . . . . . 447 692 . . . . . Kills 10 | . . . . . . . . 6 4 . . . . . Allies Corrupted . | . . . . . . . . . . . . . . . Allies Melted . | . . . . . . . . . . . . . . . Intel | -11 -10 -10 -9 -9 -9 -8 -8 -8 -8 -7 -7 -7 -7 -7 ------- Run | Yrd Mat Min Mat Min Exi Min Mat Gar Mat Fac Gar Fac Low Low Active Infowar (turns) 3132 | 32 165 144 105 . 1 116 960 . . . . . 1609 . Sensors 1858 | . . 144 105 . . . . . . . . . 1609 . Seismic 1274 | 32 165 . . . 1 116 960 . . . . . . . Robot Analysis Total 4 | . 1 1 1 . . . . . 1 . . . . . Derelict Logs Recovered 5 | . . . . 2 . . . . . . . . 3 . Drone Launches . | . . . . . . . . . . . . . . . Drone Recoveries . | . . . . . . . . . . . . . . . Exploration | -11 -10 -10 -9 -9 -9 -8 -8 -8 -8 -7 -7 -7 -7 -7 ------------- Run | Yrd Mat Min Mat Min Exi Min Mat Gar Mat Fac Gar Fac Low Low Turns Passed 25946 | 147 1346 361 4000 1954 4627 131 2441 1226 1514 1618 2077 2518 1971 15 Spaces Moved 10142 | 75 548 138 1152 593 1308 36 1084 609 887 897 881 1053 881 . Core 3 | 3 . . . . . . . . . . . . . . Treads 5670 | 72 548 138 1152 593 1308 36 806 . . 13 2 371 631 . Legs . | . . . . . . . . . . . . . . . Wheels 4469 | . . . . . . . 278 609 887 884 879 682 250 . Hover . | . . . . . . . . . . . . . . . Flight . | . . . . . . . . . . . . . . . Fastest Speed 50 | 50 160 240 240 320 320 320 145 145 145 145 130 140 160 . Average Speed 223 | 155 189 240 313 320 320 320 190 145 145 156 189 200 216 . Slowest Speed 545 | 160 240 240 320 320 320 320 240 145 145 317 325 320 545 . Overloaded Moves . | . . . . . . . . . . . . . . . Propulsion Burnouts . | . . . . . . . . . . . . . . . Robots Hopped . | . . . . . . . . . . . . . . . Potential Cave-ins . | . . . . . . . . . . . . . . . Cave-ins Triggered . | . . . . . . . . . . . . . . . Exploration Rate (%) 60 | 4 94 42 92 99 94 14 82 64 90 21 96 33 87 2 Regions Visited 14 Branch Regions 6 Pre-discovered Areas 13 | . 2 . 2 1 1 . 4 . 2 . . . 1 . Known Exits Taken 8 | . . 1 1 . . 1 1 . 1 1 . 1 1 . Unknown Exits Taken 4 | 1 1 . . 1 1 . . . . . . . . . Scrap Searched 5 | . . . . 2 . . . . . . . . 3 . Spaces Dug 47 | . . . . . 14 . 15 . 2 . 1 15 . . Terrain Destroyed 880 | . . 17 47 53 226 19 32 26 30 11 270 149 . . Melee . | . . . . . . . . . . . . . . . Projectile 32 | . . . . . 5 . . . 2 . 22 3 . . AOE 848 | . . 17 47 53 221 19 32 26 28 11 248 146 . . Terrain Rammed . | . . . . . . . . . . . . . . . Walls Destroyed . | . . . . . . . . . . . . . . . Machines Disabled . | . . . . . . . . . . . . . . . Actions | -11 -10 -10 -9 -9 -9 -8 -8 -8 -8 -7 -7 -7 -7 -7 --------- Run | Yrd Mat Min Mat Min Exi Min Mat Gar Mat Fac Gar Fac Low Low Total 12116 | 92 733 156 1371 615 1508 45 1310 876 1030 1058 1124 1272 921 5 Wait 462 | 2 81 7 42 1 6 2 57 42 36 46 82 50 8 . Move 10127 | 74 547 137 1151 592 1307 35 1083 608 887 896 878 1052 880 . Hop . | . . . . . . . . . . . . . . . Pick Up 144 | 3 13 1 27 . 29 . 20 . 10 12 5 17 7 . Fast Attach 57 | 7 7 . 1 . 3 . 5 1 1 7 16 9 . . Attach 67 | . . . 5 . 19 . 9 1 6 6 8 9 3 1 Detach 18 | . 3 . . . 3 . 3 . . 3 1 3 2 . Swap 163 | 1 7 4 32 6 9 4 24 7 9 9 10 34 7 . Drop 119 | . 6 . 27 . 18 . 25 1 7 13 . 20 2 . Fire 765 | 5 65 7 75 12 114 4 83 82 67 66 91 78 12 4 Melee 2 | . . . . . . . . . . . 2 . . . Ram 7 | . . . . . . . . . 7 . . . . . Kick . | . . . . . . . . . . . . . . . Crush 20 | . 4 . 11 4 . . 1 . . . . . . . Escape Stasis 131 | . . . . . . . . 100 . . 31 . . . Rewire 34 | . . . . . . . . 34 . . . . . . Trap . | . . . . . . . . . . . . . . . Miscellaneous . | . . . . . . . . . . . . . . . Route ------- -11/Scrapyard -10/Materials (discovered 6 exits: *Mat x3 / *Min x2 / Sub) -10/Mines (discovered 2 exits: *Mat x2) -9/Materials (discovered 6 exits: *Mat x3 / *Min / *Sto x2) -9/Mines (discovered 4 exits: *Mat x2 / *Exi / [*Zio]) -9/Exiles -8/Mines -8/Materials (discovered 3 exits: *Fac x2 / Gar) -8/Garrison (discovered 3 exits: *Mat x3) -8/Materials (discovered 3 exits: *Fac x3) -7/Factory (discovered 7 exits: Fac x4 / *Low x2 / Gar) -7/Garrison (discovered 3 exits: *Fac x3) -7/Factory (discovered 2 exits: *Fac / *Low) -7/Lower Caves (discovered 2 exits: *Low / [*Zio]) -7/Lower Caves History --------- Turn | Location | Event 11 | -11/Scrapyard | Discovered new exit (range 16) 148 | -11/Scrapyard | Entered Materials 167 | -10/Materials | Discovered new exit (range 16) 294 | -10/Materials | Discovered new exit (range 14) 301 | -10/Materials | Build established: Mutant 331 | -10/Materials | Discovered new exit (range 12) 567 | -10/Materials | Central database locked down 569 | -10/Materials | Discovered new exit (range 7) 999 | -10/Materials | Discovered new exit (range 7) 1065 | -10/Materials | Learned location of Mines (-9) 1128 | -10/Materials | Identified exit to Subcaves 1170 | -10/Materials | Repaired Lgt. Treads 1183 | -10/Materials | Learned location of Recycling (-9) 1198 | -10/Materials | Repaired Lgt. Treads 1228 | -10/Materials | Learned Storage garrison access intel 1361 | -10/Materials | Learned location of 2 exits from Materials 1494 | -10/Materials | Entered Mines 1494 | -10/Mines | Discovered new exit (range 17) 1495 | -10/Mines | Identified exit to Materials 1542 | -10/Mines | Met a Derelict bent on vengeance 1554 | -10/Mines | Found a damaged Exp. Sensor Array with a note attached 1559 | -10/Mines | Found Prototype Device 1634 | -10/Mines | Identified Exp. Sensor Array 1759 | -10/Mines | Assembled infested the area 1786 | -10/Mines | Core integrity fell below 50% 1855 | -10/Mines | Entered Materials 1855 | -9/Materials | Evolved 2 slots: Utility x1, Weapon x1 1856 | -9/Materials | Identified exit to Materials 1857 | -9/Materials | Identified exit to Storage 2263 | -9/Materials | Build established: Tank 2584 | -9/Materials | Lost 3 parts (1n1u1w) 3691 | -9/Materials | Discovered new exit (range 7) 4270 | -9/Materials | Repaired Shield Generator 4326 | -9/Materials | Discovered exit to Materials (range 12) 4376 | -9/Materials | Learned location of Zion (-7) 4485 | -9/Materials | Learned 2 Storage zone layouts 4502 | -9/Materials | Learned Storage security intel 4609 | -9/Materials | Identified exit to Mines 5388 | -9/Materials | Central database locked down 5855 | -9/Materials | Entered Mines 5856 | -9/Mines | Learned location of Storage (-9) 5942 | -9/Mines | Deemed a non-threat by the Exiles lab entrance 5965 | -9/Mines | A Derelict revealed a hidden shortcut to a safe place 6505 | -9/Mines | Discovered exit to Materials (range 5) 6618 | -9/Mines | Discovered exit to Materials (range 6) 7389 | -9/Mines | Learned Materials trap positions 7412 | -9/Mines | Learned Materials emergency access door positions 7495 | -9/Mines | Found a hidden stash of uninstalled traps 7796 | -9/Mines | Discovered new exit (range 5) 7809 | -9/Mines | Entered Exiles 7889 | -9/Exiles | Met 8R-AWN 7944 | -9/Exiles | Met EX-HEX 8091 | -9/Exiles | Met EX-DEC 8156 | -9/Exiles | Visited The Gauntlet 8395 | -9/Exiles | Met EX-BIN 8430 | -9/Exiles | Aligned with FarCom system 8433 | -9/Exiles | Given EX-Vault access code 8517 | -9/Exiles | Opened EX-Vault 8593 | -9/Exiles | Warned to stay clear of 0b10 Research branches 9458 | -9/Exiles | Attacked by the Exiles 9619 | -9/Exiles | Lost 7 parts (3n2u2w) 9622 | -9/Exiles | Core integrity fell below 50% 9665 | -9/Exiles | Destroyed 8R-AWN 9690 | -9/Exiles | Lost 3 parts (1p1n1w) 10348 | -9/Exiles | Destroyed EX-BIN 10354 | -9/Exiles | Destroyed EX-HEX 10387 | -9/Exiles | Destroyed EX-DEC 10491 | -9/Exiles | Found Prototype Processor 11004 | -9/Exiles | Found YOLO Cannon 11153 | -9/Exiles | Build established: Gunner 11661 | -9/Exiles | YOLO Cannon suddenly exploded 11662 | -9/Exiles | Core integrity fell below 20% 11692 | -9/Exiles | Lost 4 parts (1p1n2w) 11955 | -9/Exiles | Build established: Scavenger-Mutant 12102 | -9/Exiles | Found Firepult 12106 | -9/Exiles | Found Latent Energy Streamer 12391 | -9/Exiles | Discovered new exit (range 12) 12436 | -9/Exiles | Stole two prototypes: Latent Energy Streamer, Firepult 12436 | -9/Exiles | Entered Mines 12440 | -8/Mines | Build established: Scavenger-Tank 12509 | -8/Mines | Discovered exit to Materials (range 15) 12567 | -8/Mines | Entered Materials 12567 | -8/Materials | Evolved 2 slots: Propulsion x1, Weapon x1 12568 | -8/Materials | Loaded intel: 18 trap records 12756 | -8/Materials | Build established: Scavenger-Gunner 13027 | -8/Materials | Identified Exp. Core Analyzer 13148 | -8/Materials | Discovered new exit (range 5) 13317 | -8/Materials | Repaired Broken Adv. Weapon Cycler? 13471 | -8/Materials | Garrison activated, responded to threat 13563 | -8/Materials | Lost 3 parts (1u2w) 13826 | -8/Materials | Build established: Scavenger-Tank 13933 | -8/Materials | Garrison activated, responded to threat 13979 | -8/Materials | Identified exit to Garrison 14103 | -8/Materials | Lost 3 parts (1n2u) 14117 | -8/Materials | Discovered new exit (range 16) 14378 | -8/Materials | Build established: Scavenger-Gunner 14399 | -8/Materials | Learned Factory stockpile data 14553 | -8/Materials | Learned Factory trap positions 14604 | -8/Materials | Learned Storage garrison access intel 14634 | -8/Materials | Learned Factory interactive machine intel 14672 | -8/Materials | Learned 4 Factory zone layouts 14888 | -8/Materials | Build established: Gunner 15008 | -8/Materials | Entered Garrison 15032 | -8/Garrison | Triggered checkpoint 15062 | -8/Garrison | Garrison Relay disabled 15134 | -8/Garrison | Triggered checkpoint 15171 | -8/Garrison | Triggered checkpoint 15194 | -8/Garrison | Triggered checkpoint 15250 | -8/Garrison | Triggered checkpoint 15347 | -8/Garrison | Discovered new exit (range 11) 15386 | -8/Garrison | Garrison Relay disabled 15400 | -8/Garrison | Triggered checkpoint 15466 | -8/Garrison | Garrison Relay disabled 15609 | -8/Garrison | Discovered new exit (range 12) 15642 | -8/Garrison | Triggered checkpoint 15684 | -8/Garrison | Triggered checkpoint 15706 | -8/Garrison | Core integrity fell below 50% 15767 | -8/Garrison | Garrison Relay disabled 15896 | -8/Garrison | Triggered checkpoint 15950 | -8/Garrison | Garrison Relay disabled 15961 | -8/Garrison | Learned Materials security intel 16119 | -8/Garrison | Discovered new exit (range 13) 16152 | -8/Garrison | Build established: Scavenger-Gunner 16160 | -8/Garrison | Triggered checkpoint 16168 | -8/Garrison | Garrison Relay disabled 16234 | -8/Garrison | Entered Materials 16234 | -8/Materials | Accompanied by 4 allies 16666 | -8/Materials | Discovered new exit (range 16) 16959 | -8/Materials | Central database locked down 17038 | -8/Materials | Discovered new exit (range 10) 17090 | -8/Materials | Learned location of 1 exit from Recycling 17157 | -8/Materials | Learned 2 Storage zone layouts 17214 | -8/Materials | Repaired Enh. Autogun? 17261 | -8/Materials | Identified exit to Factory 17295 | -8/Materials | Learned location of Lower Caves (-6) 17394 | -8/Materials | Learned Storage emergency access door positions 17434 | -8/Materials | First assault squad dispatched 17745 | -8/Materials | Core integrity fell below 20% 17748 | -8/Materials | Entered Factory 17748 | -7/Factory | Evolved 2 slots: Utility x2 17749 | -7/Factory | Identified exit to Factory 17751 | -7/Factory | Loaded intel: 112 trap records 17753 | -7/Factory | Loaded intel: 52 interactive machine locations 17844 | -7/Factory | Found Powered Armor 17850 | -7/Factory | Found Powered Armor 17853 | -7/Factory | Found Powered Armor 17855 | -7/Factory | Found Powered Armor 17859 | -7/Factory | Found Powered Armor 17863 | -7/Factory | Found Powered Armor 17942 | -7/Factory | Discovered new exit (range 3) 18148 | -7/Factory | First assault squad dispatched 18348 | -7/Factory | Identified exit to Lower Caves 18397 | -7/Factory | Repaired Broken Exp. Sensor Array? 18694 | -7/Factory | Fabricated Adv. Target Analyzer? 18959 | -7/Factory | Identified exit to Garrison 19293 | -7/Factory | Garrison activated, responded to threat 19366 | -7/Factory | Entered Garrison 19426 | -7/Garrison | Build established: Gunner 19468 | -7/Garrison | Triggered checkpoint 19533 | -7/Garrison | Garrison Relay disabled 19568 | -7/Garrison | Phase Generator disabled 19700 | -7/Garrison | System corruption reached 10% 19869 | -7/Garrison | Triggered checkpoint 19870 | -7/Garrison | Destroyed 7 combat bots 19901 | -7/Garrison | Build established: Scavenger-Gunner 19906 | -7/Garrison | Triggered checkpoint 20192 | -7/Garrison | Discovered new exit (range 3) 20218 | -7/Garrison | Triggered checkpoint 20257 | -7/Garrison | Garrison Relay disabled 20350 | -7/Garrison | Triggered checkpoint 20370 | -7/Garrison | Garrison Relay disabled 20473 | -7/Garrison | Lost 3 parts (1p1n1w) 20542 | -7/Garrison | Garrison Relay disabled 20636 | -7/Garrison | Discovered new exit (range 9) 20970 | -7/Garrison | Discovered new exit (range 14) 21048 | -7/Garrison | Triggered checkpoint 21094 | -7/Garrison | Triggered checkpoint 21141 | -7/Garrison | Garrison Relay disabled 21259 | -7/Garrison | Attempted to access garrison exit controls, blocked by remote lockdown 21443 | -7/Garrison | Entered Factory 21662 | -7/Factory | Core integrity fell below 50% 21829 | -7/Factory | Build established: Gunner 21843 | -7/Factory | First assault squad dispatched 23154 | -7/Factory | Found Prototype Launcher 23154 | -7/Factory | Identified Rocket Array 23494 | -7/Factory | Discovered exit to Factory (range 8) 23777 | -7/Factory | Discovered exit to Lower Caves (range 16) 23961 | -7/Factory | Entered Lower Caves 23961 | -7/Lower Caves | Spotted EC-43A(f) 23962 | -7/Lower Caves | Spotted ZB-PI2(f) 23963 | -7/Lower Caves | Encountered a Master Thief 23963 | -7/Lower Caves | Encountered a Master Thief 23964 | -7/Lower Caves | Latent Energy Streamer stolen by Master Thief 23964 | -7/Lower Caves | Firepult stolen by Master Thief 23973 | -7/Lower Caves | Met a Warlord Commander 23974 | -7/Lower Caves | Learned location of Warlord (-5) 23975 | -7/Lower Caves | Warlord Commander delivered Encrypted Comm Array 23981 | -7/Lower Caves | Found Encrypted Comm Array 24009 | -7/Lower Caves | A Derelict revealed a hidden shortcut to a safe place 24076 | -7/Lower Caves | Learned location of 1 exit from Factory 24411 | -7/Lower Caves | Build established: Skirmisher 24642 | -7/Lower Caves | Learned 4 Factory zone layouts 24941 | -7/Lower Caves | Discovered new exit (range 14) 24974 | -7/Lower Caves | Identified exit to Lower Caves 24982 | -7/Lower Caves | Encountered a Warlord checkpoint 25338 | -7/Lower Caves | Ambushed by wild Derelicts 25472 | -7/Lower Caves | Attracted the attention of an 0b10 checkpoint 25637 | -7/Lower Caves | Learned location of 1 exit from Factory 25932 | -7/Lower Caves | Entered another Lower Caves area 25932 | -7/Lower Caves | Spotted LE-5OC(f) 25933 | -7/Lower Caves | Exp. Sensor Array stolen by Master Thief 25934 | -7/Lower Caves | Encountered a Master Thief 25937 | -7/Lower Caves | Spotted 8P-WIC(f) 25938 | -7/Lower Caves | Encountered a Master Thief 25944 | -7/Lower Caves | Adv. Launcher Guidance Computer stolen by Master Thief 25947 | -7/Lower Caves | Self-destructed Last Messages --------------- 25766_ System corrupted: Energy discharge (-58). 25783_ System corrupted: FCS attempts to trigger Prc. Assault Rifle. 25783_ System corrupted: Prc. Assault Rifle misfires. 25798_ 9JOVBG/CL%FLRD3D3OMRDSJW> O<